lending/lending_fUSD_20240723
["ID","MTS","AMOUNT","RATE_DAILY","PERIOD"]
[333050870,1721778655479,-693.11,0.00011498,2]
[333050871,1721778655489,-763.74,0.00011498,2]
[333050872,1721778655498,-500.0,0.00011498,2]
[333050873,1721778655508,-500.0,0.00011498,2]
[333050874,1721778655518,-1000.84,0.00011498,2]
[333050875,1721778655528,-975.87,0.00011498,2]
[333050876,1721778655537,-1259.76,0.00011498,2]
[333050877,1721778655548,-510.42,0.00011498,2]
[333050878,1721778655558,-3599.81,0.00011498,2]
[333050879,1721778655572,-2247.63,0.00011498,2]
[333050880,1721778655582,-801.19,0.00011498,2]
[333050881,1721778655591,-575.84,0.00011498,2]
[333050882,1721778655601,-814.8,0.00011498,2]
[333050883,1721778655613,-1165.71,0.00011498,2]
[333050884,1721778655622,-909.88,0.00011498,2]
[333050885,1721778655632,-1157.07,0.00011498,2]
[333050886,1721778655644,-713.25,0.00011498,2]
[333050887,1721778655654,-2309.79,0.00011498,2]
[333050888,1721778655663,-1226.42,0.00011498,2]
[333050889,1721778655673,-500.0,0.00011498,2]
[333050890,1721778655683,-669.69,0.00011498,2]
[333050891,1721778655692,-500.0,0.00011498,2]
[333050892,1721778655702,-527.87,0.00011498,2]
[333050893,1721778655712,-500.0,0.00011498,2]
[333050894,1721778655723,-500.0,0.00011498,2]
[333050895,1721778655732,-500.0,0.00011498,2]
[333050896,1721778655743,-2271.45,0.00011498,2]
[333050897,1721778655753,-500.0,0.00011498,2]
[333050898,1721778655763,-500.0,0.00011498,2]
[333050899,1721778655773,-500.0,0.00011498,2]
[333050900,1721778655783,-1391.01,0.00011498,2]
[333050901,1721778655792,-546.45,0.00011498,2]
[333050902,1721778655802,-1209.44,0.00011498,2]
[333050903,1721778655812,-500.0,0.00011498,2]
[333050904,1721778655821,-500.0,0.00011498,2]
[333050905,1721778655832,-1542.79,0.00011498,2]
[333050906,1721778655842,-515.25,0.00011498,2]
[333050907,1721778655852,-3610.12,0.00011498,2]
[333050908,1721778655861,-500.0,0.00011498,2]
[333050909,1721778655871,-164.49297802,0.00011499,2]
[333050910,1721778655881,-35000.0,0.00011499,2]
[333050911,1721778655891,-5084.70389602,0.00011499,2]
[333050912,1721778655901,-546.87,0.00011499,2]
[333050913,1721778655911,-500.0,0.00011499,2]
[333050914,1721778655921,-35000.0,0.00011499,2]
[333050915,1721778655931,-500.0,0.00011499,2]
[333050916,1721778655942,-163.8951949,0.00011499,2]
[333050917,1721778655952,-552.98,0.00011499,2]
[333050918,1721778655962,-502.87,0.00011499,2]
[333050919,1721778655973,-500.0,0.00011499,2]
[333050920,1721778655983,-4686.05,0.00011499,2]
[333050921,1721778655992,-2271.45,0.00011499,2]
[333050922,1721778656005,-500.0,0.00011499,2]
[333050923,1721778656015,-1391.01,0.00011499,2]
[333050924,1721778656024,-500.0,0.00011499,2]
[333050925,1721778656034,-500.0,0.00011499,2]
[333050926,1721778656044,-500.0,0.00011499,2]
[333050927,1721778656054,-500.0,0.00011499,2]
[333050928,1721778656063,-500.0,0.00011499,2]
[333050929,1721778656073,-500.0,0.00011499,2]
[333050930,1721778656084,-527.47,0.00011499,2]
[333050931,1721778656094,-172564.8474309,0.000115,2]
[333050932,1721778656103,-2000.0,0.000115,2]
[333050933,1721778656113,-2000.0,0.000115,2]
[333050934,1721778656123,-200.0,0.000115,2]
[333050935,1721778656133,-200.0,0.000115,2]
[333050936,1721778656143,-200.0,0.000115,2]
[333050937,1721778656153,-200.0,0.000115,2]
[333050938,1721778656162,-200.0,0.000115,2]
[333050939,1721778656172,-200.0,0.000115,2]
[333050940,1721778656182,-200.0,0.000115,2]
[333050941,1721778656193,-200.0,0.000115,2]
[333050942,1721778656203,-200.0,0.000115,2]
[333050943,1721778656214,-200.0,0.000115,2]
[333050944,1721778656225,-2000.0,0.000115,2]
[333050945,1721778656236,-215.0,0.000115,2]
[333050946,1721778656246,-215.0,0.000115,2]
[333050947,1721778656256,-215.0,0.000115,2]
[333050948,1721778656265,-201.0,0.000115,2]
[333050949,1721778656275,-201.0,0.000115,2]
[333050950,1721778656285,-201.0,0.000115,2]
[333050951,1721778656295,-201.0,0.000115,2]
[333050952,1721778656305,-201.0,0.000115,2]
[333050953,1721778656315,-201.0,0.000115,2]
[333050954,1721778656325,-201.0,0.000115,2]
[333050955,1721778656335,-201.0,0.000115,2]
[333050956,1721778656345,-201.0,0.000115,2]
[333050957,1721778656354,-210.0,0.000115,2]
[333050958,1721778656364,-210.0,0.000115,2]
[333050959,1721778656374,-210.0,0.000115,2]
[333050960,1721778656384,-210.0,0.000115,2]
[333050961,1721778656393,-210.0,0.000115,2]
[333050962,1721778656403,-210.0,0.000115,2]
[333050963,1721778656412,-210.0,0.000115,2]
[333050964,1721778656422,-210.0,0.000115,2]
[333050965,1721778656432,-210.0,0.000115,2]
[333050966,1721778656441,-210.0,0.000115,2]
[333050967,1721778656451,-210.0,0.000115,2]
[333050968,1721778656461,-210.0,0.000115,2]
[333050969,1721778656472,-210.0,0.000115,2]
[333050970,1721778656481,-210.0,0.000115,2]
[333050971,1721778656491,-212.0,0.000115,2]
[333050972,1721778656500,-212.0,0.000115,2]
[333050973,1721778656510,-212.0,0.000115,2]
[333050974,1721778656520,-212.0,0.000115,2]
[333050975,1721778656530,-212.0,0.000115,2]
[333050976,1721778656539,-212.0,0.000115,2]
[333050977,1721778656548,-212.0,0.000115,2]
[333050978,1721778656558,-212.0,0.000115,2]
[333050979,1721778656571,-212.0,0.000115,2]
[333050980,1721778656581,-150.77350799,0.00011522,2]
[333050981,1721778656591,-155.0,0.00011525,2]
[333050982,1721778656601,-500.0,0.00011545,2]
[333050983,1721778656612,-500.0,0.00011545,2]
[333050984,1721778656622,-500.0,0.00011545,2]
[333050985,1721778656633,-500.0,0.00011545,2]
[333050986,1721778656643,-693.11,0.00011545,2]
[333050987,1721778656653,-500.0,0.00011545,2]
[333050988,1721778656663,-1000.84,0.00011545,2]
[333050989,1721778656672,-1259.76,0.00011545,2]
[333050990,1721778656682,-3599.81,0.00011545,2]
[333050991,1721778656691,-2247.63,0.00011545,2]
[333050992,1721778656700,-575.84,0.00011545,2]
[333050993,1721778656709,-1165.71,0.00011545,2]
[333050994,1721778656719,-1157.07,0.00011545,2]
[333050995,1721778656730,-2309.79,0.00011545,2]
[333050996,1721778656740,-1226.42,0.00011545,2]
[333050997,1721778656751,-500.0,0.00011545,2]
[333050998,1721778656760,-500.0,0.00011545,2]
[333050999,1721778656770,-527.87,0.00011545,2]
[333051000,1721778656780,-500.0,0.00011545,2]
[333051001,1721778656791,-500.0,0.00011545,2]
[333051002,1721778656800,-546.45,0.00011545,2]
[333051003,1721778656810,-500.0,0.00011545,2]
[333051004,1721778656819,-515.25,0.00011545,2]
[333051005,1721778656829,-150.0,0.00011546,2]
[333051006,1721778656839,-500.0,0.00011546,2]
[333051007,1721778656848,-500.0,0.00011546,2]
[333051008,1721778656858,-500.0,0.00011546,2]
[333051009,1721778656867,-599.5,0.00011546,2]
[333051010,1721778656877,-635.86,0.00011546,2]
[333051011,1721778656887,-500.0,0.00011546,2]
[333051012,1721778656896,-500.0,0.00011546,2]
[333051013,1721778656906,-500.0,0.00011546,2]
[333051014,1721778656916,-500.0,0.00011546,2]
[333051015,1721778656926,-500.0,0.00011546,2]
[333051016,1721778656935,-500.0,0.00011546,2]
[333051017,1721778656946,-841.23,0.00011546,2]
[333051018,1721778656955,-763.74,0.00011546,2]
[333051019,1721778656965,-500.0,0.00011546,2]
[333051020,1721778656976,-975.87,0.00011546,2]
[333051021,1721778656986,-510.42,0.00011546,2]
[333051022,1721778656997,-801.19,0.00011546,2]
[333051023,1721778657007,-814.8,0.00011546,2]
[333051024,1721778657018,-909.88,0.00011546,2]
[333051025,1721778657028,-713.25,0.00011546,2]
[333051026,1721778657039,-669.69,0.00011546,2]
[333051027,1721778657049,-500.0,0.00011546,2]
[333051028,1721778657060,-500.0,0.00011546,2]
[333051029,1721778657070,-500.0,0.00011546,2]
[333051030,1721778657080,-500.0,0.00011546,2]
[333051031,1721778657090,-500.0,0.00011546,2]
[333051032,1721778657099,-1209.44,0.00011546,2]
[333051033,1721778657109,-1542.79,0.00011546,2]
[333051034,1721778657119,-3610.12,0.00011546,2]
[333051035,1721778657129,-35000.0,0.00011547,2]
[333051036,1721778657140,-35000.0,0.00011547,2]
[333051037,1721778657150,-348.63039,0.0001162,2]
[333051038,1721778657159,-152.0,0.0001162,3]
[333051039,1721778657169,-5800.0,0.00011724,2]
[333051040,1721778657178,-5800.0,0.00011733,2]
[333051041,1721778657188,-5800.0,0.00011742,2]
[333051042,1721778657198,-5800.0,0.0001175,2]
[333051043,1721778657208,-5800.0,0.00011761,2]
[333051044,1721778657217,-5800.0,0.00011769,2]
[333051045,1721778657228,-5800.0,0.00011774,2]
[333051046,1721778657238,-5800.0,0.00011774,2]
[333051047,1721778657247,-5800.0,0.00011778,2]
[333051048,1721778657257,-150.0,0.00011781,2]
[333051049,1721778657267,-150.0,0.00011781,2]
[333051050,1721778657276,-150.0,0.00011781,2]
[333051051,1721778657286,-150.0,0.00011781,2]
[333051052,1721778657295,-150.0,0.00011781,2]
[333051053,1721778657304,-150.0,0.00011781,2]
[333051054,1721778657314,-150.0,0.00011781,2]
[333051055,1721778657324,-203.0343,0.00011781,2]
[333051056,1721778657333,-552.98,0.00011782,2]
[333051057,1721778657343,-502.87,0.00011782,2]
[333051058,1721778657352,-4686.05,0.00011782,2]
[333051059,1721778657362,-500.0,0.00011782,2]
[333051060,1721778657371,-500.0,0.00011782,2]
[333051061,1721778657381,-500.0,0.00011782,2]
[333051062,1721778657390,-500.0,0.00011782,2]
[333051063,1721778657400,-500.0,0.00011782,2]
[333051064,1721778657409,-5800.0,0.00011783,2]
[333051065,1721778657419,-5800.0,0.00011783,2]
[333051066,1721778657428,-546.87,0.00011785,2]
[333051067,1721778657438,-500.0,0.00011785,2]
[333051068,1721778657448,-622.07,0.00011785,2]
[333051069,1721778657457,-5800.0,0.00011786,2]
[333051070,1721778657467,-1138.0,0.0001179,2]
[333051071,1721778657478,-209.63212772,0.00011791,2]
[333051072,1721778657487,-5800.0,0.00011792,2]
[333051073,1721778657497,-5800.0,0.00011792,2]
[333051074,1721778657507,-2702.22429052,0.00011795,2]
[333051075,1721778657516,-332.38736934,0.00011795,2]
[333051076,1721778657529,-2271.45,0.00011797,2]
[333051077,1721778657539,-1391.01,0.00011797,2]
[333051078,1721778657548,-500.0,0.00011797,2]
[333051079,1721778657558,-500.0,0.00011797,2]
[333051080,1721778657634,-2702.22429052,0.00011798,2]
[333051081,1721778657647,-332.38736932,0.00011798,2]
[333051082,1721778657656,-500.0,0.00011798,2]
[333051083,1721778657666,-599.5,0.00011798,2]
[333051084,1721778657676,-500.0,0.00011798,2]
[333051085,1721778657685,-500.0,0.00011798,2]
[333051086,1721778657695,-500.0,0.00011798,2]
[333051087,1721778657704,-763.74,0.00011798,2]
[333051088,1721778657714,-975.87,0.00011798,2]
[333051089,1721778657724,-150.0,0.00011799,2]
[333051090,1721778657734,-500.0,0.00011799,2]
[333051091,1721778657744,-226.2,0.00011799,2]
[333051092,1721778657753,-500.0,0.00011799,2]
[333051093,1721778657763,-635.86,0.00011799,2]
[333051094,1721778657773,-555.33,0.00011799,2]
[333051095,1721778657782,-500.0,0.00011799,2]
[333051096,1721778657792,-500.0,0.00011799,2]
[333051097,1721778657802,-587.55,0.00011799,2]
[333051098,1721778657812,-500.0,0.00011799,2]
[333051099,1721778657822,-500.0,0.00011799,2]
[333051100,1721778657831,-841.23,0.00011799,2]
[333051101,1721778657841,-693.11,0.00011799,2]
[333051102,1721778657851,-500.0,0.00011799,2]
[333051103,1721778657861,-500.0,0.00011799,2]
[333051104,1721778657871,-1000.84,0.00011799,2]
[333051105,1721778657880,-1259.76,0.00011799,2]
[333051106,1721778657892,-510.42,0.00011799,2]
[333051107,1721778657901,-3599.81,0.00011799,2]
[333051108,1721778657910,-2247.63,0.00011799,2]
[333051109,1721778657920,-801.19,0.00011799,2]
[333051110,1721778657930,-575.84,0.00011799,2]
[333051111,1721778657940,-814.8,0.00011799,2]
[333051112,1721778657949,-1165.71,0.00011799,2]
[333051113,1721778657959,-909.88,0.00011799,2]
[333051114,1721778657969,-1157.07,0.00011799,2]
[333051115,1721778657978,-713.25,0.00011799,2]
[333051116,1721778657988,-2309.79,0.00011799,2]
[333051117,1721778657997,-1226.42,0.00011799,2]
[333051118,1721778658007,-500.0,0.00011799,2]
[333051119,1721778658016,-669.69,0.00011799,2]
[333051120,1721778658026,-500.0,0.00011799,2]
[333051121,1721778658035,-527.87,0.00011799,2]
[333051122,1721778658045,-500.0,0.00011799,2]
[333051123,1721778658055,-500.0,0.00011799,2]
[333051124,1721778658065,-500.0,0.00011799,2]
[333051125,1721778658075,-500.0,0.00011799,2]
[333051126,1721778658085,-500.0,0.00011799,2]
[333051127,1721778658095,-500.0,0.00011799,2]
[333051128,1721778658105,-500.0,0.00011799,2]
[333051129,1721778658115,-546.45,0.00011799,2]
[333051130,1721778658124,-1209.44,0.00011799,2]
[333051131,1721778658134,-500.0,0.00011799,2]
[333051132,1721778658143,-1542.79,0.00011799,2]
[333051133,1721778658153,-515.25,0.00011799,2]
[333051134,1721778658162,-3610.12,0.00011799,2]
[333051135,1721778658172,-1235.0,0.000118,2]
[333051136,1721778658182,-85111.15404744,0.000118,2]
[333051137,1721778658192,-5800.0,0.000118,2]
[333051138,1721778658202,-164.49297802,0.000118,2]
[333051139,1721778658213,-163.8951949,0.000118,2]
[333051140,1721778658223,-2702.22429052,0.000118,2]
[333051141,1721778658233,-332.38736932,0.000118,2]
[333051142,1721778658242,-1358.0,0.0001181,2]
[333051143,1721778658251,-1324.6839215,0.0001185,2]
[333051144,1721778658260,-5320.70599634,0.0001185,2]
[333051145,1721778658270,-5320.70599634,0.0001185,2]
[333051146,1721778658280,-2271.45,0.00011864,2]
[333051147,1721778658288,-1391.01,0.00011864,2]
[333051148,1721778658298,-500.0,0.00011864,2]
[333051149,1721778658307,-297.86,0.00011864,2]
[333051150,1721778658317,-47621.12172644,0.00011864,2]
[333051151,1721778658327,-552.98,0.00011886,2]
[333051152,1721778658336,-502.87,0.00011886,2]
[333051153,1721778658346,-4686.05,0.00011886,2]
[333051154,1721778658355,-192.45,0.00011886,2]
[333051155,1721778658365,-500.0,0.00011886,2]
[333051156,1721778658375,-500.0,0.00011886,2]
[333051157,1721778658384,-500.0,0.00011886,2]
[333051158,1721778658394,-500.0,0.00011886,2]
[333051159,1721778658403,-546.87,0.00011887,2]
[333051160,1721778658413,-187.95,0.00011887,2]
[333051161,1721778658423,-500.0,0.00011887,2]
[333051162,1721778658432,-500.0,0.00011887,2]
[333051163,1721778658443,-500.0,0.00011887,2]
[333051164,1721778658452,-599.5,0.00011887,2]
[333051165,1721778658464,-500.0,0.00011887,2]
[333051166,1721778658473,-635.86,0.00011887,2]
[333051167,1721778658483,-500.0,0.00011887,2]
[333051168,1721778658492,-500.0,0.00011887,2]
[333051169,1721778658502,-500.0,0.00011887,2]
[333051170,1721778658511,-500.0,0.00011887,2]
[333051171,1721778658521,-500.0,0.00011887,2]
[333051172,1721778658531,-339.79,0.00011887,2]
[333051173,1721778658540,-500.0,0.00011887,2]
[333051174,1721778658550,-841.23,0.00011887,2]
[333051175,1721778658559,-693.11,0.00011887,2]
[333051176,1721778658575,-763.74,0.00011887,2]
[333051177,1721778658586,-500.0,0.00011887,2]
[333051178,1721778658595,-500.0,0.00011887,2]
[333051179,1721778658605,-1000.84,0.00011887,2]
[333051180,1721778658617,-975.87,0.00011887,2]
[333051181,1721778658627,-1259.76,0.00011887,2]
[333051182,1721778658637,-510.42,0.00011887,2]
[333051183,1721778658648,-3599.81,0.00011887,2]
[333051184,1721778658657,-2247.63,0.00011887,2]
[333051185,1721778658667,-801.19,0.00011887,2]
[333051186,1721778658676,-575.84,0.00011887,2]
[333051187,1721778658686,-814.8,0.00011887,2]
[333051188,1721778658695,-1165.71,0.00011887,2]
[333051189,1721778658705,-909.88,0.00011887,2]
[333051190,1721778658714,-1157.07,0.00011887,2]
[333051191,1721778658724,-713.25,0.00011887,2]
[333051192,1721778658733,-2309.79,0.00011887,2]
[333051193,1721778658742,-1226.42,0.00011887,2]
[333051194,1721778658752,-500.0,0.00011887,2]
[333051195,1721778658761,-669.69,0.00011887,2]
[333051196,1721778658770,-500.0,0.00011887,2]
[333051197,1721778658780,-552.98,0.00011887,2]
[333051198,1721778658790,-527.87,0.00011887,2]
[333051199,1721778658803,-502.87,0.00011887,2]
[333051200,1721778658813,-500.0,0.00011887,2]
[333051201,1721778658822,-500.0,0.00011887,2]
[333051202,1721778658833,-4686.05,0.00011887,2]
[333051203,1721778658843,-500.0,0.00011887,2]
[333051204,1721778658853,-500.0,0.00011887,2]
[333051205,1721778658863,-2271.45,0.00011887,2]
[333051206,1721778658874,-500.0,0.00011887,2]
[333051207,1721778658883,-500.0,0.00011887,2]
[333051208,1721778658894,-500.0,0.00011887,2]
[333051209,1721778658904,-1391.01,0.00011887,2]
[333051210,1721778658914,-546.45,0.00011887,2]
[333051211,1721778658925,-500.0,0.00011887,2]
[333051212,1721778658935,-1209.44,0.00011887,2]
[333051213,1721778658944,-500.0,0.00011887,2]
[333051214,1721778658954,-500.0,0.00011887,2]
[333051215,1721778658964,-260.26,0.00011887,2]
[333051216,1721778658975,-1542.79,0.00011887,2]
[333051217,1721778658984,-515.25,0.00011887,2]
[333051218,1721778658994,-500.0,0.00011887,2]
[333051219,1721778659003,-3610.12,0.00011887,2]
[333051220,1721778659013,-394.57,0.00011887,2]
[333051221,1721778659023,-254745.28108329,0.00011888,2]
[333051222,1721778659032,-546.87,0.00011889,2]
[333051223,1721778659042,-500.0,0.00011889,2]
[333051224,1721778659053,-5147.96166671,0.0001189,2]
[333051225,1721778659062,-500.0,0.00011891,2]
[333051226,1721778659072,-599.5,0.00011891,2]
[333051227,1721778659082,-500.0,0.00011891,2]
[333051228,1721778659091,-500.0,0.00011891,2]
[333051229,1721778659101,-500.0,0.00011891,2]
[333051230,1721778659111,-500.0,0.00011891,2]
[333051231,1721778659121,-295.26843498,0.00011891,2]
[333051232,1721778659131,-500.0,0.00011891,2]
[333051233,1721778659141,-693.11,0.00011891,2]
[333051234,1721778659151,-763.74,0.00011891,2]
[333051235,1721778659160,-500.0,0.00011891,2]
[333051236,1721778659170,-1000.84,0.00011891,2]
[333051237,1721778659180,-975.87,0.00011891,2]
[333051238,1721778659190,-1259.76,0.00011891,2]
[333051239,1721778659200,-3599.81,0.00011891,2]
[333051240,1721778659209,-2247.63,0.00011891,2]
[333051241,1721778659220,-575.84,0.00011891,2]
[333051242,1721778659230,-1165.71,0.00011891,2]
[333051243,1721778659240,-1157.07,0.00011891,2]
[333051244,1721778659250,-2309.79,0.00011891,2]
[333051245,1721778659260,-1226.42,0.00011891,2]
[333051246,1721778659270,-500.0,0.00011891,2]
[333051247,1721778659279,-587.59,0.00011891,2]
[333051248,1721778659289,-527.87,0.00011891,2]
[333051249,1721778659300,-500.0,0.00011891,2]
[333051250,1721778659309,-500.0,0.00011891,2]
[333051251,1721778659319,-500.0,0.00011891,2]
[333051252,1721778659328,-546.45,0.00011891,2]
[333051253,1721778659338,-500.0,0.00011891,2]
[333051254,1721778659348,-151.0,0.00011891,2]
[333051255,1721778659358,-515.25,0.00011891,2]
[333051256,1721778659368,-7464.9928519,0.00011892,2]
[333051257,1721778659378,-59945.2940538,0.00011892,2]
[333051258,1721778659387,-3236.6717241,0.00011892,2]
[333051259,1721778659397,-2271.45,0.00011892,2]
[333051260,1721778659406,-1391.01,0.00011892,2]
[333051261,1721778659415,-500.0,0.00011892,2]
[333051262,1721778659425,-500.0,0.00011893,2]
[333051263,1721778659434,-635.86,0.00011893,2]
[333051264,1721778659443,-500.0,0.00011893,2]
[333051265,1721778659453,-841.23,0.00011893,2]
[333051266,1721778659463,-500.0,0.00011893,2]
[333051267,1721778659473,-510.42,0.00011893,2]
[333051268,1721778659484,-801.19,0.00011893,2]
[333051269,1721778659493,-814.8,0.00011893,2]
[333051270,1721778659502,-909.88,0.00011893,2]
[333051271,1721778659512,-713.25,0.00011893,2]
[333051272,1721778659521,-669.69,0.00011893,2]
[333051273,1721778659530,-500.0,0.00011893,2]
[333051274,1721778659540,-500.0,0.00011893,2]
[333051275,1721778659549,-500.0,0.00011893,2]
[333051276,1721778659558,-500.0,0.00011893,2]
[333051277,1721778659572,-1209.44,0.00011893,2]
[333051278,1721778659581,-1542.79,0.00011893,2]
[333051279,1721778659591,-3610.12,0.00011893,2]
[333051280,1721778659600,-35915.22,0.00011894,2]
[333051281,1721778659611,-552.98,0.00011895,2]
[333051282,1721778659620,-502.87,0.00011895,2]
[333051283,1721778659630,-4686.05,0.00011895,2]
[333051284,1721778659641,-500.0,0.00011895,2]
[333051285,1721778659650,-500.0,0.00011895,2]
[333051286,1721778659659,-546.87,0.00011898,2]
[333051287,1721778659669,-546.87,0.00011898,2]
[333051288,1721778659678,-500.0,0.00011898,2]
[333051289,1721778659687,-500.0,0.00011898,2]
[333051290,1721778659696,-500.0,0.00011898,2]
[333051291,1721778659705,-500.0,0.00011898,2]
[333051292,1721778659714,-599.5,0.00011898,2]
[333051293,1721778659724,-500.0,0.00011898,2]
[333051294,1721778659734,-635.86,0.00011898,2]
[333051295,1721778659743,-500.0,0.00011898,2]
[333051296,1721778659752,-500.0,0.00011898,2]
[333051297,1721778659761,-500.0,0.00011898,2]
[333051298,1721778659770,-500.0,0.00011898,2]
[333051299,1721778659779,-500.0,0.00011898,2]
[333051300,1721778659789,-500.0,0.00011898,2]
[333051301,1721778659799,-500.0,0.00011898,2]
[333051302,1721778659808,-841.23,0.00011898,2]
[333051303,1721778659817,-693.11,0.00011898,2]
[333051304,1721778659826,-693.11,0.00011898,2]
[333051305,1721778659836,-763.74,0.00011898,2]
[333051306,1721778659845,-500.0,0.00011898,2]
[333051307,1721778659854,-500.0,0.00011898,2]
[333051308,1721778659864,-500.0,0.00011898,2]
[333051309,1721778659873,-1000.84,0.00011898,2]
[333051310,1721778659883,-975.87,0.00011898,2]
[333051311,1721778659892,-1000.84,0.00011898,2]
[333051312,1721778659901,-1259.76,0.00011898,2]
[333051313,1721778659910,-1259.76,0.00011898,2]
[333051314,1721778659919,-510.42,0.00011898,2]
[333051315,1721778659928,-3599.81,0.00011898,2]
[333051316,1721778659937,-3599.81,0.00011898,2]
[333051317,1721778659947,-2247.63,0.00011898,2]
[333051318,1721778659956,-2247.63,0.00011898,2]
[333051319,1721778659967,-801.19,0.00011898,2]
[333051320,1721778659977,-575.84,0.00011898,2]
[333051321,1721778659987,-575.84,0.00011898,2]
[333051322,1721778659997,-814.8,0.00011898,2]
[333051323,1721778660008,-1165.71,0.00011898,2]
[333051324,1721778660018,-1165.71,0.00011898,2]
[333051325,1721778660028,-909.88,0.00011898,2]
[333051326,1721778660038,-1157.07,0.00011898,2]
[333051327,1721778660049,-1157.07,0.00011898,2]
[333051328,1721778660059,-713.25,0.00011898,2]
[333051329,1721778660070,-2309.79,0.00011898,2]
[333051330,1721778660080,-2309.79,0.00011898,2]
[333051331,1721778660090,-1226.42,0.00011898,2]
[333051332,1721778660099,-1226.42,0.00011898,2]
[333051333,1721778660109,-312.81,0.00011898,2]
[333051334,1721778660119,-669.69,0.00011898,2]
[333051335,1721778660129,-552.98,0.00011898,2]
[333051336,1721778660139,-552.98,0.00011898,2]
[333051337,1721778660148,-552.98,0.00011898,2]
[333051338,1721778660159,-527.87,0.00011898,2]
[333051339,1721778660169,-527.87,0.00011898,2]
[333051340,1721778660180,-502.87,0.00011898,2]
[333051341,1721778660190,-502.87,0.00011898,2]
[333051342,1721778660200,-502.87,0.00011898,2]
[333051343,1721778660210,-500.0,0.00011898,2]
[333051344,1721778660221,-466.8,0.00011898,2]
[333051345,1721778660232,-4686.05,0.00011898,2]
[333051346,1721778660242,-4686.05,0.00011898,2]
[333051347,1721778660252,-4686.05,0.00011898,2]
[333051348,1721778660262,-500.0,0.00011898,2]
[333051349,1721778660272,-500.0,0.00011898,2]
[333051350,1721778660282,-500.0,0.00011898,2]
[333051351,1721778660292,-2271.45,0.00011898,2]
[333051352,1721778660302,-2271.45,0.00011898,2]
[333051353,1721778660312,-2271.45,0.00011898,2]
[333051354,1721778660322,-500.0,0.00011898,2]
[333051355,1721778660332,-500.0,0.00011898,2]
[333051356,1721778660342,-500.0,0.00011898,2]
[333051357,1721778660352,-500.0,0.00011898,2]
[333051358,1721778660362,-1391.01,0.00011898,2]
[333051359,1721778660372,-1391.01,0.00011898,2]
[333051360,1721778660383,-1391.01,0.00011898,2]
[333051361,1721778660393,-546.45,0.00011898,2]
[333051362,1721778660403,-546.45,0.00011898,2]
[333051363,1721778660413,-500.0,0.00011898,2]
[333051364,1721778660423,-500.0,0.00011898,2]
[333051365,1721778660433,-500.0,0.00011898,2]
[333051366,1721778660443,-1209.44,0.00011898,2]
[333051367,1721778660453,-500.0,0.00011898,2]
[333051368,1721778660463,-500.0,0.00011898,2]
[333051369,1721778660474,-500.0,0.00011898,2]